fUSD/lending_fUSD_20250112
["ID","MTS","AMOUNT","RATE_DAILY","PERIOD"]
[348628058,1736688643125,-500.0,9.999e-05,2]
[348628060,1736688643134,-500.0,9.999e-05,2]
[348628061,1736688643143,-502.17186647,9.999e-05,2]
[348628062,1736688643152,-500.0,9.999e-05,2]
[348628063,1736688643161,-500.0,9.999e-05,2]
[348628064,1736688643170,-500.0,9.999e-05,2]
[348628065,1736688643179,-500.0,9.999e-05,2]
[348628066,1736688643188,-500.0,9.999e-05,2]
[348628067,1736688643197,-501.42788874,9.999e-05,2]
[348628068,1736688643206,-500.0,9.999e-05,2]
[348628069,1736688643215,-500.0,9.999e-05,2]
[348628070,1736688643224,-500.0,9.999e-05,2]
[348628071,1736688643233,-500.0,9.999e-05,2]
[348628072,1736688643242,-650.05,9.999e-05,2]
[348628073,1736688643251,-500.0,9.999e-05,2]
[348628074,1736688643260,-500.0,9.999e-05,2]
[348628075,1736688643269,-500.0,9.999e-05,2]
[348628076,1736688643278,-500.0,9.999e-05,2]
[348628077,1736688643287,-500.0,9.999e-05,2]
[348628078,1736688643296,-502.30205745,9.999e-05,2]
[348628079,1736688643305,-501.93352859,9.999e-05,2]
[348628080,1736688643315,-1690.24,9.999e-05,2]
[348628081,1736688643324,-500.0,9.999e-05,2]
[348628082,1736688643333,-508.91888859,9.999e-05,2]
[348628083,1736688643342,-500.0,9.999e-05,2]
[348628084,1736688643351,-500.0,9.999e-05,2]
[348628085,1736688643360,-500.0,9.999e-05,2]
[348628086,1736688643370,-500.0,9.999e-05,2]
[348628087,1736688643379,-206.79426156,9.999e-05,2]
[348628088,1736688643388,-173.73123733,9.999e-05,2]
[348628089,1736688643397,-385.59468069,9.999e-05,2]
[348628090,1736688643407,-500.0,9.999e-05,2]
[348628091,1736688643416,-500.0,9.999e-05,2]
[348628092,1736688643425,-500.0,9.999e-05,2]
[348628093,1736688643434,-500.0,9.999e-05,2]
[348628094,1736688643443,-500.0,9.999e-05,2]
[348628095,1736688643453,-2570.27,9.999e-05,2]
[348628096,1736688643462,-500.0,9.999e-05,2]
[348628097,1736688643471,-500.0,9.999e-05,2]
[348628098,1736688643481,-500.0,9.999e-05,2]
[348628099,1736688643490,-500.0,9.999e-05,2]
[348628100,1736688643499,-500.0,9.999e-05,2]
[348628101,1736688643508,-500.0,9.999e-05,2]
[348628102,1736688643517,-500.0,9.999e-05,2]
[348628103,1736688643526,-500.0,9.999e-05,2]
[348628104,1736688643536,-500.0,9.999e-05,2]
[348628105,1736688643545,-959.35,9.999e-05,2]
[348628106,1736688643554,-1496.33,9.999e-05,2]
[348628107,1736688643563,-500.0,9.999e-05,2]
[348628108,1736688643572,-500.0,9.999e-05,2]
[348628109,1736688643581,-516.36724962,9.999e-05,2]
[348628110,1736688643590,-500.0,9.999e-05,2]
[348628111,1736688643599,-500.0,9.999e-05,2]
[348628112,1736688643608,-500.0,9.999e-05,2]
[348628113,1736688643618,-634.67,9.999e-05,2]
[348628114,1736688643627,-663.8,9.999e-05,2]
[348628115,1736688643637,-1642.78,9.999e-05,2]
[348628116,1736688643646,-339.02147947,9.999e-05,2]
[348628117,1736688643656,-500.0,9.999e-05,2]
[348628118,1736688643665,-500.0,9.999e-05,2]
[348628119,1736688643675,-500.0,9.999e-05,2]
[348628120,1736688643684,-500.0,9.999e-05,2]
[348628121,1736688643694,-500.0,9.999e-05,2]
[348628122,1736688643703,-500.0,9.999e-05,2]
[348628123,1736688643884,-500.0,9.999e-05,2]
[348628124,1736688643894,-500.0,9.999e-05,2]
[348628125,1736688643904,-504.29442747,9.999e-05,2]
[348628126,1736688643913,-504.02455567,9.999e-05,2]
[348628127,1736688643923,-500.0,9.999e-05,2]
[348628128,1736688643932,-500.0,9.999e-05,2]
[348628129,1736688643942,-500.0,9.999e-05,2]
[348628130,1736688643951,-500.0,9.999e-05,2]
[348628131,1736688643960,-500.0,9.999e-05,2]
[348628132,1736688643970,-504.78802334,9.999e-05,2]
[348628133,1736688643979,-500.0,9.999e-05,2]
[348628134,1736688643989,-500.0,9.999e-05,2]
[348628135,1736688643999,-500.0,9.999e-05,2]
[348628136,1736688644009,-500.0,9.999e-05,2]
[348628137,1736688644021,-968.33,9.999e-05,2]
[348628138,1736688644031,-500.0,9.999e-05,2]
[348628139,1736688644041,-500.0,9.999e-05,2]
[348628140,1736688644052,-500.0,9.999e-05,2]
[348628141,1736688644061,-507.09721686,9.999e-05,2]
[348628142,1736688644071,-502.93144659,9.999e-05,2]
[348628143,1736688644080,-160.46235172,9.999e-05,2]
[348628144,1736688644089,-500.0,9.999e-05,2]
[348628145,1736688644100,-500.0,9.999e-05,2]
[348628146,1736688644110,-605.88162009,9.999e-05,2]
[348628147,1736688644121,-503.32887218,9.999e-05,2]
[348628148,1736688644131,-2367.68,9.999e-05,2]
[348628149,1736688644141,-501.73126271,9.999e-05,2]
[348628150,1736688644150,-500.0,9.999e-05,2]
[348628151,1736688644159,-500.62304385,9.999e-05,2]
[348628152,1736688644168,-500.0,9.999e-05,2]
[348628153,1736688644178,-504.42546372,9.999e-05,2]
[348628154,1736688644188,-500.0,9.999e-05,2]
[348628155,1736688644200,-506.28537832,9.999e-05,2]
[348628156,1736688644211,-629.11,9.999e-05,2]
[348628157,1736688644220,-523.39215435,9.999e-05,2]
[348628158,1736688644231,-500.0,9.999e-05,2]
[348628159,1736688644241,-501.48334771,9.999e-05,2]
[348628160,1736688644251,-259.32746861,9.999e-05,2]
[348628161,1736688644260,-500.0,9.999e-05,2]
[348628162,1736688644269,-500.0,9.999e-05,2]
[348628163,1736688644280,-500.0,9.999e-05,2]
[348628164,1736688644289,-500.0,9.999e-05,2]
[348628165,1736688644300,-500.0,9.999e-05,2]
[348628166,1736688644310,-978.25,9.999e-05,2]
[348628167,1736688644319,-500.0,9.999e-05,2]
[348628168,1736688644328,-500.0,9.999e-05,2]
[348628169,1736688644338,-500.0,9.999e-05,2]
[348628170,1736688644347,-500.0,9.999e-05,2]
[348628171,1736688644357,-504.49684709,9.999e-05,2]
[348628172,1736688644366,-500.0,9.999e-05,2]
[348628173,1736688644375,-500.0,9.999e-05,2]
[348628174,1736688644384,-500.0,9.999e-05,2]
[348628175,1736688644393,-500.0,9.999e-05,2]
[348628176,1736688644402,-501.41511313,9.999e-05,2]
[348628177,1736688644413,-500.0,9.999e-05,2]
[348628178,1736688644424,-500.0,9.999e-05,2]
[348628179,1736688644433,-500.0,9.999e-05,2]
[348628180,1736688644442,-838.88,9.999e-05,2]
[348628181,1736688644451,-503.74050456,9.999e-05,2]
[348628182,1736688644461,-1228.57,9.999e-05,2]
[348628183,1736688644471,-500.0,9.999e-05,2]
[348628184,1736688644480,-621.97,9.999e-05,2]
[348628185,1736688644489,-500.0,9.999e-05,2]
[348628186,1736688644498,-500.67578421,9.999e-05,2]
[348628187,1736688644508,-500.0,9.999e-05,2]
[348628188,1736688644517,-500.0,9.999e-05,2]
[348628189,1736688644527,-500.0,9.999e-05,2]
[348628190,1736688644536,-500.0,9.999e-05,2]
[348628191,1736688644546,-500.0,9.999e-05,2]
[348628192,1736688644555,-500.0,9.999e-05,2]
[348628193,1736688644564,-500.0,9.999e-05,2]
[348628194,1736688644573,-500.0,9.999e-05,2]
[348628195,1736688644582,-500.0,9.999e-05,2]
[348628196,1736688644592,-500.0,9.999e-05,2]
[348628197,1736688644601,-500.0,9.999e-05,2]
[348628198,1736688644610,-500.0,9.999e-05,2]
[348628199,1736688644620,-848.66,9.999e-05,2]
[348628200,1736688644630,-1230.17,9.999e-05,2]
[348628202,1736688644639,-500.0,9.999e-05,2]
[348628203,1736688644648,-500.0,9.999e-05,2]
[348628204,1736688644658,-500.880498,9.999e-05,2]
[348628205,1736688644667,-500.0,9.999e-05,2]
[348628206,1736688644676,-500.0,9.999e-05,2]
[348628207,1736688644687,-365.59145259,9.999e-05,2]
[348628208,1736688644696,-7225.4,9.999e-05,2]
[348628209,1736688644707,-500.0,9.999e-05,2]
[348628210,1736688644715,-7225.4,9.999e-05,2]
[348628211,1736688644724,-7225.4,9.999e-05,2]
[348628212,1736688644733,-7225.4,9.999e-05,2]
[348628213,1736688644742,-646.64,9.999e-05,2]
[348628214,1736688644752,-7225.4,9.999e-05,2]
[348628215,1736688644763,-7225.4,9.999e-05,2]
[348628216,1736688644773,-500.0,9.999e-05,2]
[348628217,1736688644783,-7225.4,9.999e-05,2]
[348628218,1736688644792,-500.0,9.999e-05,2]
[348628219,1736688644802,-7225.4,9.999e-05,2]
[348628220,1736688644813,-7225.4,9.999e-05,2]
[348628221,1736688644823,-500.0,9.999e-05,2]
[348628222,1736688644832,-7225.4,9.999e-05,2]
[348628223,1736688644842,-7225.4,9.999e-05,2]
[348628224,1736688644851,-506.95641962,9.999e-05,2]
[348628225,1736688644860,-7225.4,9.999e-05,2]
[348628226,1736688644869,-7225.4,9.999e-05,2]
[348628227,1736688644878,-7225.4,9.999e-05,2]
[348628228,1736688644887,-500.0,9.999e-05,2]
[348628229,1736688644897,-7225.4,9.999e-05,2]
[348628230,1736688644907,-7225.4,9.999e-05,2]
[348628231,1736688644916,-675.23,9.999e-05,2]
[348628232,1736688644926,-7225.4,9.999e-05,2]
[348628233,1736688644936,-7225.4,9.999e-05,2]
[348628234,1736688644945,-7225.4,9.999e-05,2]
[348628235,1736688644956,-7225.4,9.999e-05,2]
[348628236,1736688644965,-500.0,9.999e-05,2]
[348628237,1736688644975,-7225.53429767,9.999e-05,2]
[348628238,1736688644984,-500.0,9.999e-05,2]
[348628239,1736688644994,-500.0,9.999e-05,2]
[348628240,1736688645003,-500.93861245,9.999e-05,2]
[348628241,1736688645013,-500.0,9.999e-05,2]
[348628242,1736688645022,-500.0,9.999e-05,2]
[348628243,1736688645031,-500.0,9.999e-05,2]
[348628244,1736688645040,-500.0,9.999e-05,2]
[348628245,1736688645050,-798.23,9.999e-05,2]
[348628246,1736688645059,-500.0,9.999e-05,2]
[348628247,1736688645068,-500.0,9.999e-05,2]
[348628248,1736688645078,-500.0,9.999e-05,2]
[348628249,1736688645087,-500.0,9.999e-05,2]
[348628250,1736688645096,-500.0,9.999e-05,2]
[348628251,1736688645105,-501.08101758,9.999e-05,2]
[348628252,1736688645114,-504.6499641,9.999e-05,2]
[348628253,1736688645124,-500.0,9.999e-05,2]
[348628254,1736688645133,-500.0,9.999e-05,2]
[348628255,1736688645142,-500.0,9.999e-05,2]
[348628256,1736688645152,-504.28734458,9.999e-05,2]
[348628257,1736688645162,-87399.08162484,9.999e-05,2]
[348628258,1736688645172,-500.0,9.999e-05,2]
[348628259,1736688645181,-500.0,9.999e-05,2]
[348628260,1736688645190,-500.0,9.999e-05,2]
[348628261,1736688645200,-500.0,9.999e-05,2]
[348628262,1736688645212,-503.4477864,9.999e-05,2]
[348628263,1736688645221,-414.5621334,9.999e-05,2]
[348628264,1736688645230,-503.2784802,9.999e-05,2]
[348628265,1736688645239,-500.0,9.999e-05,2]
[348628266,1736688645249,-500.0,9.999e-05,2]
[348628267,1736688645258,-500.0,9.999e-05,2]
[348628268,1736688645267,-1197.59,9.999e-05,2]
[348628270,1736688645277,-500.0,9.999e-05,2]
[348628272,1736688645286,-500.0,9.999e-05,2]
[348628273,1736688645297,-500.0,9.999e-05,2]
[348628274,1736688645306,-500.0,9.999e-05,2]
[348628275,1736688645315,-274.35192669,9.999e-05,2]
[348628276,1736688645324,-500.0,9.999e-05,2]
[348628278,1736688645333,-500.0,9.999e-05,2]
[348628279,1736688645342,-500.0,9.999e-05,2]
[348628280,1736688645351,-501.85375896,9.999e-05,2]
[348628281,1736688645361,-500.0,9.999e-05,2]
[348628282,1736688645370,-653.89,9.999e-05,2]
[348628283,1736688645379,-500.0,9.999e-05,2]
[348628284,1736688645389,-500.0,9.999e-05,2]
[348628285,1736688645398,-500.0,9.999e-05,2]
[348628286,1736688645409,-500.0,9.999e-05,2]
[348628287,1736688645418,-500.0,9.999e-05,2]
[348628288,1736688645427,-1307.11,9.999e-05,2]
[348628289,1736688645437,-1069.95,9.999e-05,2]
[348628290,1736688645446,-500.0,9.999e-05,2]
[348628291,1736688645456,-500.0,9.999e-05,2]
[348628292,1736688645465,-603.63,9.999e-05,2]
[348628293,1736688645474,-500.0,9.999e-05,2]
[348628295,1736688645483,-500.0,9.999e-05,2]
[348628297,1736688645492,-500.0,9.999e-05,2]
[348628299,1736688645501,-500.0,9.999e-05,2]
[348628300,1736688645511,-500.0,9.999e-05,2]
[348628301,1736688645520,-500.0,9.999e-05,2]
[348628302,1736688645529,-500.0,9.999e-05,2]
[348628303,1736688645538,-1590.59,9.999e-05,2]
[348628304,1736688645548,-500.0,9.999e-05,2]
[348628305,1736688645556,-500.0,9.999e-05,2]
[348628306,1736688645566,-575.48,9.999e-05,2]
[348628307,1736688645575,-1133.01,9.999e-05,2]
[348628309,1736688645584,-500.0,9.999e-05,2]
[348628311,1736688645593,-516.21963015,9.999e-05,2]
[348628312,1736688645603,-500.0,9.999e-05,2]
[348628313,1736688645612,-500.0,9.999e-05,2]
[348628314,1736688645622,-500.0,9.999e-05,2]
[348628315,1736688645631,-500.0,9.999e-05,2]
[348628316,1736688645640,-500.0,9.999e-05,2]
[348628317,1736688645649,-500.0,9.999e-05,2]
[348628318,1736688645658,-500.0,9.999e-05,2]
[348628319,1736688645668,-500.0,9.999e-05,2]
[348628320,1736688645679,-500.0,9.999e-05,2]
[348628321,1736688645690,-523.14,9.999e-05,2]
[348628322,1736688645699,-803.32,9.999e-05,2]
[348628323,1736688645710,-500.0,9.999e-05,2]
[348628324,1736688645720,-205.59955707,9.999e-05,2]
[348628325,1736688645729,-500.0,9.999e-05,2]
[348628326,1736688645738,-971.0,0.0001,2]
[348628327,1736688645747,-141777.83098013,0.0001,2]
[348628328,1736688645756,-811847.42347483,0.0001,2]
[348628329,1736688645765,-1000.0,0.0001,2]
[348628330,1736688645775,-593055.57719583,0.0001,2]
[348628336,1736688646175,-992.094,0.0001,2]
[348628337,1736688646188,-466.48125778,0.0001,2]
[348628339,1736688646481,-592.53,9.999e-05,2]
[348628340,1736688646492,-563.07,9.999e-05,2]
[348628341,1736688646502,-1.931748,0.0001,2]
[348628342,1736688646513,-698.183323,0.0001,2]
[348628343,1736688646538,-82142.88680207,0.0001,2]
[348628344,1736688646547,-397202.46119793,0.0001,2]
[348628345,1736688646572,-301.19518991,0.0001,2]
[348628346,1736688646584,-362.72531814,0.0001,2]
[348628348,1736688646848,-154.61582698,9.986e-05,2]
[348628349,1736688646857,-5264.83417302,0.0001,2]
[348628350,1736688646867,-1655.65,0.0001,2]
[348628351,1736688646878,-1769.10136396,0.0001,2]
[348628352,1736688646904,-907.39922847,0.0001,2]
[348628353,1736688646952,-446.91429972,0.0001,2]
[348628354,1736688647773,-500.0,9.974e-05,2]
[348628355,1736688647782,-500.0,9.974e-05,2]
[348628356,1736688647791,-500.0,9.975e-05,2]
[348628357,1736688647801,-154.61582698,9.988e-05,2]
[348628358,1736688647810,-1221.76,9.999e-05,2]
[348628359,1736688647820,-547471.03366166,0.0001,2]
[348628360,1736688647829,-1194276.51779472,0.0001,2]
[348628361,1736688647838,-222876.81100098,0.0001,2]
[348628362,1736688647848,-1337156.50953637,0.0001,2]
[348628363,1736688647857,-1000.0,0.0001,2]
[348628364,1736688647866,-1000.0,0.0001,2]
[348628365,1736688647875,-1000.0,0.0001,2]
[348628366,1736688647885,-1000.0,0.0001,2]
[348628367,1736688647894,-1000.0,0.0001,2]
[348628368,1736688647903,-1000.0,0.0001,2]
[348628369,1736688647912,-1000.0,0.0001,2]
[348628370,1736688647922,-1000.0,0.0001,2]
[348628371,1736688647931,-1000.0,0.0001,2]
[348628372,1736688647940,-436.87224041,0.0001,2]
[348628373,1736688647950,-250.12023418,0.0001,2]
[348628374,1736688647960,-128297.17294074,0.0001,2]
[348628375,1736688647969,-541.63338895,0.0001,2]
[348628376,1736688647978,-174.04,0.0001,2]
[348628377,1736688647988,-500.0,0.0001,2]
[348628378,1736688647998,-1000.0,0.0001,2]
[348628379,1736688648007,-1000.0,0.0001,2]
[348628380,1736688648017,-1000.0,0.0001,2]
[348628381,1736688648026,-1000.0,0.0001,2]
[348628382,1736688648036,-1000.0,0.0001,2]
[348628383,1736688648045,-1000.0,0.0001,2]
[348628384,1736688648056,-1000.0,0.0001,2]
[348628385,1736688648066,-1005.49893292,0.0001,2]
[348628386,1736688648076,-199.01827299,0.0001,2]
[348628387,1736688648085,-154.83661892,0.0001,2]
[348628388,1736688648095,-5256279.55955018,0.0001,2]
[348628389,1736688648114,-24313.59794781,0.0001,2]
[348628390,1736688648129,-5511.0801446,0.0001,2]
[348628391,1736688669014,500.0,0.00023,120]
[348628392,1736688669479,500.0,0.00023,120]
[348628393,1736688669963,500.0,0.00023,120]
[348628394,1736688670495,500.0,0.00023,120]
[348628395,1736688670936,500.0,0.00023,120]
[348628396,1736688671470,500.0,0.00023,120]
[348628397,1736688671957,519.57978292,0.00023,120]
[348628400,1736688917770,1000.0,0.00023,120]
[348628401,1736688924098,1000.0,0.00023,120]
[348628402,1736688925696,1000.0,0.00023,120]
[348628403,1736688926514,1000.0,0.00023,120]
[348628404,1736688927391,1000.0,0.00023,120]
[348628405,1736688927712,1000.0,0.00023,120]
[348628406,1736688928536,1000.0,0.00023,120]
[348628407,1736688929303,1000.0,0.00023,120]
[348628408,1736688930392,1000.0,0.00023,120]
[348628409,1736688931102,1000.0,0.00023,120]
[348628410,1736689168969,1000.0,0.00023,120]
[348628411,1736689170496,1000.0,0.00023,120]
[348628412,1736689171432,1000.0,0.00023,120]
[348628414,1736689675643,1022.34,8.219e-05,2]
[348628428,1736689832070,-571.44,8.862e-05,2]
[348628429,1736689832079,-2000.0,8.863e-05,2]
[348628430,1736689832088,-250.0,8.863e-05,2]
[348628431,1736689832097,-190.49,8.865e-05,2]
[348628432,1736689832106,-1000.0,8.924e-05,2]
[348628433,1736689832116,-666.8,8.947e-05,2]
[348628434,1736689832125,-150.0,8.975e-05,2]
[348628435,1736689832134,-150.0,8.975e-05,2]
[348628436,1736689832143,-150.0,8.986e-05,2]
[348628437,1736689832152,-10109.38,8.999e-05,2]
[348628438,1736689832161,-500.0,9e-05,2]
[348628439,1736689832170,-500.0,9e-05,2]
[348628440,1736689832179,-500.0,9e-05,2]
[348628441,1736689832187,-500.0,9e-05,2]
[348628442,1736689832196,-500.0,9e-05,2]
[348628443,1736689832205,-500.0,9e-05,2]
[348628444,1736689832215,-500.0,9e-05,2]
[348628445,1736689832224,-500.0,9e-05,2]
[348628446,1736689832233,-500.0,9e-05,2]
[348628447,1736689832242,-500.0,9e-05,2]
[348628448,1736689832250,-500.0,9e-05,2]
[348628449,1736689832259,-500.0,9e-05,2]
[348628450,1736689832269,-500.0,9e-05,2]
[348628451,1736689832277,-500.0,9e-05,2]
[348628452,1736689832287,-500.0,9e-05,2]
[348628453,1736689832297,-500.0,9e-05,2]
[348628454,1736689832305,-500.0,9e-05,2]
[348628455,1736689832314,-500.0,9e-05,2]
[348628456,1736689832323,-500.0,9e-05,2]
[348628457,1736689832332,-500.0,9e-05,2]
[348628458,1736689832341,-500.0,9e-05,2]
[348628459,1736689832350,-500.0,9e-05,2]
[348628460,1736689832360,-500.0,9e-05,2]
[348628461,1736689832369,-500.0,9e-05,2]
[348628462,1736689832378,-500.0,9e-05,2]
[348628463,1736689832386,-500.0,9e-05,2]
[348628464,1736689832395,-500.0,9e-05,2]
[348628465,1736689832405,-500.0,9e-05,2]
[348628466,1736689832414,-532.61,9e-05,2]
[348628467,1736689832423,-500.0,9e-05,2]
[348628468,1736689832433,-500.0,9e-05,2]
[348628469,1736689832443,-500.0,9e-05,2]
[348628470,1736689832452,-500.0,9e-05,2]
[348628471,1736689832461,-500.0,9e-05,2]
[348628473,1736689832471,-500.0,9e-05,2]
[348628475,1736689832482,-500.0,9e-05,2]
[348628477,1736689832492,-500.0,9e-05,2]
[348628479,1736689832501,-500.0,9e-05,2]
[348628481,1736689832511,-150.0,9.308e-05,2]
[348628483,1736689832522,-150.0,9.64e-05,2]
[348628485,1736689832531,-291.74145,9.66e-05,2]
[348628487,1736689832540,-3746.46153348,9.79e-05,2]
[348628489,1736689832549,-437.76,9.836e-05,2]
[348628491,1736689832558,-305.74,9.836e-05,2]
[348628493,1736689832567,-5000.0,9.871e-05,2]
[348628494,1736689832578,-2897.76658865,9.969e-05,2]
[348628496,1736689832587,-500.0,9.969e-05,2]
[348628498,1736689832596,-2602.44,9.969e-05,2]
[348628500,1736689832605,-3702.8,9.969e-05,2]
[348628502,1736689832616,-808.65,9.969e-05,2]
[348628504,1736689832625,-500.0,9.969e-05,2]
[348628506,1736689832634,-1201.74,9.969e-05,2]
[348628508,1736689832643,-3449.72,9.969e-05,2]
[348628510,1736689832654,-536.36,9.969e-05,2]
[348628512,1736689832663,-500.0,9.969e-05,2]
[348628513,1736689832672,-1119.21,9.969e-05,2]
[348628515,1736689832683,-500.0,9.969e-05,2]
[348628517,1736689832692,-978.3,9.969e-05,2]
[348628519,1736689832701,-500.0,9.969e-05,2]
[348628521,1736689832710,-2094.83,9.969e-05,2]
[348628523,1736689832719,-1018.93,9.969e-05,2]
[348628525,1736689832728,-639.79,9.97e-05,2]
[348628527,1736689832738,-500.0,9.97e-05,2]
[348628529,1736689832747,-500.0,9.97e-05,2]
[348628531,1736689832756,-738.12,9.97e-05,2]
[348628533,1736689832769,-500.0,9.97e-05,2]
[348628535,1736689832779,-500.0,9.97e-05,2]
[348628537,1736689832788,-500.0,9.97e-05,2]
[348628539,1736689832798,-500.0,9.97e-05,2]
[348628541,1736689832809,-500.0,9.97e-05,2]
[348628543,1736689832819,-1106.93,9.97e-05,2]
[348628545,1736689832830,-801.1,9.97e-05,2]
[348628547,1736689832840,-874.11,9.97e-05,2]
[348628549,1736689832849,-917.69,9.97e-05,2]
[348628551,1736689832859,-500.0,9.97e-05,2]
[348628553,1736689832868,-661.9,9.97e-05,2]
[348628555,1736689832877,-501.64215988,9.97e-05,2]
[348628557,1736689832887,-500.0,9.97e-05,2]
[348628559,1736689832896,-269.76790156,9.97e-05,2]
[348628561,1736689832905,-500.0,9.97e-05,2]
[348628563,1736689832914,-500.0,9.97e-05,2]
[348628565,1736689832923,-500.0,9.97e-05,2]
[348628567,1736689832933,-500.0,9.97e-05,2]
[348628569,1736689832942,-500.0,9.97e-05,2]
[348628570,1736689832951,-500.0,9.97e-05,2]
[348628572,1736689832959,-511.83,9.97e-05,2]
[348628574,1736689832969,-500.0,9.97e-05,2]
[348628576,1736689832978,-501.60678494,9.97e-05,2]
[348628578,1736689832987,-194.64445146,9.97e-05,2]
[348628582,1736689833014,-536.06554854,9.97e-05,2]
[348628584,1736689833023,-941.06,9.97e-05,2]
[348628586,1736689833033,-500.0,9.97e-05,2]
[348628588,1736689833042,-500.0,9.97e-05,2]
[348628590,1736689833051,-500.0,9.97e-05,2]
[348628592,1736689833062,-502.78190876,9.97e-05,2]
[348628594,1736689833072,-924.52,9.97e-05,2]
[348628596,1736689833082,-500.0,9.97e-05,2]
[348628598,1736689833091,-500.8906852,9.97e-05,2]
[348628600,1736689833101,-816.73,9.97e-05,2]
[348628602,1736689833110,-500.0,9.97e-05,2]
[348628604,1736689833119,-500.0,9.97e-05,2]
[348628606,1736689833129,-500.0,9.97e-05,2]
[348628608,1736689833138,-58.19029121,9.97e-05,2]
[348628612,1736689833163,-441.80970879,9.97e-05,2]
[348628614,1736689833172,-500.0,9.97e-05,2]
[348628616,1736689833182,-500.0,9.97e-05,2]
[348628618,1736689833191,-500.0,9.97e-05,2]
[348628620,1736689833201,-780.355463,9.97e-05,2]
[348628622,1736689833210,-500.0,9.97e-05,2]
[348628623,1736689833219,-363.97631943,9.97e-05,2]
[348628625,1736689833229,-500.0,9.97e-05,2]
[348628627,1736689833238,-550.14,9.97e-05,2]
[348628629,1736689833248,-543.65,9.97e-05,2]
[348628631,1736689833257,-984.92,9.97e-05,2]
[348628633,1736689833266,-524.84,9.97e-05,2]
[348628635,1736689833276,-500.0,9.97e-05,2]
[348628637,1736689833286,-825.82,9.97e-05,2]
[348628639,1736689833295,-650.20785,9.97e-05,2]
[348628641,1736689833305,-656.94,9.97e-05,2]
[348628643,1736689833314,-500.0,9.97e-05,2]
[348628645,1736689833325,-872.38,9.97e-05,2]
[348628647,1736689833334,-500.0,9.97e-05,2]
[348628649,1736689833344,-500.0,9.97e-05,2]
[348628651,1736689833353,-500.0,9.97e-05,2]
[348628653,1736689833362,-893.44,9.97e-05,2]
[348628655,1736689833372,-500.0,9.97e-05,2]
[348628657,1736689833382,-500.0,9.97e-05,2]
[348628659,1736689833391,-500.0,9.97e-05,2]
[348628661,1736689833400,-500.0,9.97e-05,2]
[348628663,1736689833410,-500.0,9.97e-05,2]
[348628664,1736689833419,-665.54,9.97e-05,2]
[348628665,1736689833429,-500.0,9.97e-05,2]
[348628666,1736689833439,-1159.14,9.97e-05,2]
[348628667,1736689833448,-500.0,9.97e-05,2]
[348628668,1736689833458,-500.0,9.97e-05,2]
[348628669,1736689833468,-500.0,9.97e-05,2]
[348628670,1736689833478,-500.0,9.97e-05,2]
[348628671,1736689833487,-935.74,9.97e-05,2]
[348628672,1736689833497,-555.63,9.97e-05,2]
[348628673,1736689833507,-500.0,9.97e-05,2]
[348628674,1736689833516,-597.72,9.97e-05,2]
[348628675,1736689833525,-717.27,9.97e-05,2]
[348628677,1736689833537,-642.26,9.97e-05,2]
[348628678,1736689833546,-500.0,9.97e-05,2]
[348628680,1736689833555,-500.0,9.97e-05,2]
[348628682,1736689833564,-500.0,9.97e-05,2]
[348628684,1736689833574,-500.0,9.97e-05,2]
[348628686,1736689833583,-500.0,9.97e-05,2]
[348628688,1736689833592,-500.0,9.97e-05,2]
[348628690,1736689833601,-500.0,9.97e-05,2]
[348628692,1736689833611,-500.0,9.97e-05,2]
[348628694,1736689833620,-423.51312942,9.97e-05,2]
[348628696,1736689833630,-360.48667503,9.97e-05,2]